Cogmind - Beta 14 @@@ ROGUE MODE // 2024.08.15 @ 00:22:22 Player: albenzo Result: Destroyed by Y-64 Sentinel with Wave Gun Performance ------------- Evolutions (5) 2500 Regions Visited (7) 1400 Robots Destroyed (44) 220 Value Destroyed (1377) 1377 Prototype IDs (20) 400 Alien Tech Used (0) 0 Bonus (2627) 2627 TOTAL SCORE: 8524 Bonus ------- High Alert Combat Kills 38 Follower Combat Kills 89 Entered Garrisons 200 Delivered SUBCON Basin 2000 Registered with UFD 300 Cogmind --------- Core Integrity 0/1000 Matter 272/300 Energy 83/100 System Corruption 25% Temperature Cool (9) Movement Core (50) Location -5/Factory Parts ------- > --- POWER (1) -------- (None) > --- PROPULSION (4) --- (None) > --- UTILITY (10) ----- Melee Analysis Suite > --- WEAPON (2) ------- (None) > --- INVENTORY (5) ---- Light Fission Core Light Fission Core Machine Rigger Phase Cannon Improved Plasma Cutter Peak State ------------ > --- POWER ------------ Meta Core > --- PROPULSION ------- Biomechanical Wings Biomechanical Wings Biomechanical Wings Biomechanical Wings Field Propulsion Drive > --- UTILITY ---------- Scrap Suit Small Storage Unit Structural Scanner Triangulator Improved Sensor Array Advanced Signal Interpreter Terrain Scanner Advanced Terrain Scan Processor System Shield Tech Extrapolator > --- WEAPON ----------- Companion Sword > --- INVENTORY -------- Cesium-ion Thruster Biomechanical Wings Biomechanical Wings Advanced Shield Generator Scrapoid Pod Phase Cannon Heavy Rocket Launcher [Rating: 90] Favorites ----------- Power Subdweller Power Source Engine Subdweller Power Source Power Core Meta Core Propulsion Spiked Treads Treads Spiked Treads Leg Aluminum Leg Wheel Compact Wheel Flight Unit Biomechanical Wings Utility Huge Storage Unit Device Seismic Detector Storage Huge Storage Unit Processor Tech Extrapolator Hackware System Shield Protection Scrap Shield Weapon Makeshift Laser Energy Gun Makeshift Laser Ballistic Gun Subdweller Machine Gun Ballistic Cannon Battle Cannon Launcher Subdweller Shrapnel Launcher Special Weapon Remote Datajack Slashing Weapon Companion Sword Build | -11 -10 -10 -7 -7 -5 -5 -5 ------- Run | Yrd Mat Sub Rec Scr Fac Gar Fac Slots Evolved 10 | . . . . . 10 . . Power . | . . . . . . . . Propulsion 2 | . . . . . 2 . . Utility 8 | . . . . . 8 . . Weapon . | . . . . . . . . Parts Attached 97 | 2 4 31 3 2 26 29 . Power 7 | . . 2 . 1 . 4 . Engine 2 | . . 2 . . . . . Core 5 | . . . . 1 . 4 . Reactor . | . . . . . . . . Propulsion 33 | . 2 5 2 . 13 11 . Treads 6 | . 2 3 . . . 1 . Leg 1 | . . . . . . 1 . Wheel 4 | . . 2 2 . . . . Hover . | . . . . . . . . Flight 22 | . . . . . 13 9 . Utility 33 | 1 . 8 1 . 13 10 . Device 12 | 1 . 3 . . 5 3 . Storage 3 | . . 1 . . 1 1 . Processor 11 | . . . 1 . 5 5 . Hackware 1 | . . . . . 1 . . Protection 6 | . . 4 . . 1 1 . Artifact . | . . . . . . . . Weapon 24 | 1 2 16 . 1 . 4 . Energy Gun 2 | . . 2 . . . . . Energy Cannon . | . . . . . . . . Ballistic Gun 13 | 1 1 11 . . . . . Ballistic Cannon 1 | . . 1 . . . . . Launcher 2 | . . 2 . . . . . Special Weapon 5 | . 1 . . . . 4 . Impact Weapon . | . . . . . . . . Slashing Weapon 1 | . . . . 1 . . . Piercing Weapon . | . . . . . . . . Special Melee Weapon . | . . . . . . . . Unidentified Prototypes 2 | . . . . 1 1 . . Parts Lost 30 | . . 4 . . . 22 4 Power 1 | . . 1 . . . . . Propulsion 14 | . . 1 . . . 12 1 Utility 12 | . . 1 . . . 9 2 Weapon 3 | . . 1 . . . 1 1 Highest Loss Streak 14 | . . 2 . . . 14 4 To Critical Strikes . | . . . . . . . . Average Slot Usage (%) 82 | . 100 90 100 69 81 59 20 Engine 8 | . 14 12 14 1 . . . Core 3 | . . . . 8 5 3 . Treads 12 | . 24 24 . . . 1 . Wheel 10 | . . 3 28 21 . . . Flight 1 | . . . . . 23 14 3 Device 3 | . 14 3 8 . 16 7 . Storage 9 | . 14 8 14 10 5 2 . Processor 5 | . . . 5 10 18 16 11 Protection 4 | . . 9 . . 2 2 . Energy Gun 6 | . . . 28 12 . . . Ballistic Gun 12 | . 24 24 . . . . . Slashing Weapon 1 | . . . . 4 5 5 3 Peak Build Rating 90 | 7 7 36 36 41 90 89 22 Average Rating 26 | 6 6 15 31 34 83 46 17 On Entrance 28 | 6 7 7 36 26 33 89 22 Naked Turns . | . . . . . . . . Heaviest Build 92 | 14 14 91 91 92 24 41 4 Greatest Support 40 | 20 40 40 26 26 33 32 4 Greatest Overweight (x) 5 | . . 5 5 3 . 2 . Average Overweight (x) 1 | . . . 3 3 . . . Largest Inventory Capacity 25 | 8 8 25 25 25 25 8 5 Average Capacity 15 | 8 8 9 25 25 8 6 5 Most Carried 25 | 7 8 25 25 25 15 8 5 Average Carried 12 | 6 7 7 22 20 7 5 5 Final Capacity 25 | 8 8 25 25 25 8 5 5 Final Carried 24 | 7 8 24 24 16 8 5 5 Class Distribution -------------------- 73% | Mutant 15% | Subdweller-Mutant 3% | Scavenger-Ninja Dominant Class ---------------- Mutant | -10/Materials Mutant | -10/Subcaves Mutant | -7/Recycling Mutant | -7/Scraptown Scavenger-Ninja | -5/Factory Mutant | -5/Garrison Sprinter | -5/Factory Resources | -11 -10 -10 -7 -7 -5 -5 -5 ----------- Run | Yrd Mat Sub Rec Scr Fac Gar Fac Matter Collected 1764 | 232 37 822 156 10 55 452 . Remotely . | . . . . . . . . Salvage Created 1424 | 16 37 326 427 . 172 446 . Parts 86 | 4 3 28 17 . 13 21 . Haulers Intercepted 1 | . . . . . 1 . . Recyclers Shooed 4 | . . . 4 . . . . Parts Field Recycled . | . . . . . . . . Retrieved Matter . | . . . . . . . . Parts Self-Destructed 9 | . . 9 . . . . . Prevented . | . . . . . . . . Kills | -11 -10 -10 -7 -7 -5 -5 -5 ------- Run | Yrd Mat Sub Rec Scr Fac Gar Fac Combat Hostiles Destroyed 30 | . 3 19 . . . 8 . Melee 8 | . . . . . . 8 . Guns 14 | . 3 11 . . . . . Cannons 2 | . . 2 . . . . . AOE 6 | . . 6 . . . . . Classes Destroyed 14 | 1 1 3 2 . 3 4 . Worker 1 | . . . . . 1 . . Builder 2 | . . . 1 . 1 . . Tunneler 1 | 1 . . . . . . . Hauler 1 | . . . . . 1 . . Recycler 6 | . . . 6 . . . . Turret 2 | . . 2 . . . . . Watcher 1 | . . . . . 1 . . Swarmer 10 | . 3 6 . . . 1 . Cutter 1 | . . . . . . 1 . Grunt 4 | . . . . . . 4 . Brawler 1 | . . . . . . 1 . Sentry 1 | . . 1 . . . . . Hunter 1 | . . . . . . 1 . Subdweller 12 | . . 12 . . . . . Best Kill Streak 6 | 1 3 6 4 . 2 3 . Combat Bots Only 4 | . 3 4 . . . 3 . Max Kills in Single Turn 3 | 1 2 3 1 . 1 1 . Gunslinging 1 | . 1 . . . . . . Exploded 2 | . . 2 . . . . . Melee 1 | . . . . . . 1 . Uniques/NPCs Destroyed . | . . . . . . . . Combat | -11 -10 -10 -7 -7 -5 -5 -5 -------- Run | Yrd Mat Sub Rec Scr Fac Gar Fac Hostile Shots Fired 272 | . 11 104 . . 10 140 7 Missed 78 | . . 25 . . 5 48 . Damage Taken 3883 | . 93 1446 . . 185 1929 230 Core 1248 | . 27 217 . . 109 801 94 Absorbed by Shields 67 | . . . . . . 67 . Regen/Repaired (Parts) 6 | . . . . 6 . . . Core Remaining (%) 51 | 100 . . . 2 . . . Volleys Fired 142 | 3 29 92 13 . . 5 . Largest 2 | 2 2 2 2 . . 1 . Hottest 100 | 40 100 67 100 . . 5 . Shots Fired 240 | 6 35 168 26 . . 5 . Gun 181 | 6 12 137 26 . . . . Cannon 24 | . . 24 . . . . . Launcher 7 | . . 7 . . . . . Special 28 | . 23 . . . . 5 . Kinetic 186 | 6 12 168 . . . . . Thermal 49 | . 23 . 26 . . . . Explosive . | . . . . . . . . Electromagnetic . | . . . . . . . . Robot Hit Streak 41 | 2 7 35 41 . . 5 . Robot Miss Streak 6 | 1 2 6 2 . . . . Penetration Max . | . . . . . . . . Secondary Targets 1 | . 1 . . . . . . Max Gunslinging Chain 1 | . 1 . . . . . . Shots Hit Robots 157 | 4 8 87 17 . 7 32 2 Core Hits 63 | 1 3 36 7 . 2 12 2 Critical Kills . | . . . . . . . . Critical Parts Destroyed . | . . . . . . . . Critical Strikes 2 | . . . 2 . . . . Burn 2 | . . . 2 . . . . Melee Attacks 66 | . . . . . 18 46 2 Impact . | . . . . . . . . Slashing 66 | . . . . . 18 46 2 Piercing . | . . . . . . . . Sneak Attacks 5 | . . . . . 3 2 . Combat Hostiles 2 | . . . . . . 2 . Follow-up Attacks . | . . . . . . . . Damage Inflicted 4584 | 35 111 2463 308 . 487 1077 103 Guns 1691 | 35 87 1261 308 . . . . Cannons 334 | . . 334 . . . . . Explosions 868 | . . 868 . . . . . Melee 1645 | . . . . . 487 1077 81 Ramming 22 | . . . . . . . 22 Kinetic 2585 | 35 87 2463 . . . . . Thermal 332 | . 24 . 308 . . . . Explosive . | . . . . . . . . Electromagnetic . | . . . . . . . . Impact . | . . . . . . . . Slashing 1645 | . . . . . 487 1077 81 Piercing . | . . . . . . . . Highest Corruption 25 | . . . . . . 18 25 Average Corruption 18 | . . . . . . 17 20 Corruption Purged . | . . . . . . . . Corruption Blocked . | . . . . . . . . Effects 23 | . . . . . . 19 4 Message Errors 1 | . . . . . . 1 . Matter Fused 7 | . . . . . . 7 . Heat Flow Errors 3 | . . . . . . 2 1 Energy Discharges 3 | . . . . . . 2 1 Data Loss (minor) 3 | . . . . . . 3 . Data Loss (major) 2 | . . . . . . 2 . Misdirections 4 | . . . . . . 2 2 Overload Shots . | . . . . . . . . Overflow Damage 172 | . . 53 . . 119 . . Projectiles . | . . . . . . . . Explosions 53 | . . 53 . . . . . Melee 119 | . . . . . 119 . . Knockbacks 7 | . . 7 . . . . . Impact . | . . . . . . . . Kinetic 7 | . . 7 . . . . . Secondary . | . . . . . . . . Self-Inflicted Damage 77 | . . 67 . . . . 10 Shots 2 | . . 2 . . . . . Rammed 5 | . . . . . . . 5 Targets Rammed 5 | . . . . . . . 5 Kicked . | . . . . . . . . Crushed . | . . . . . . . . Highest Temperature 177 | . 160 . 120 . . 177 160 Average Temperature 72 | . 79 . 52 . . 77 90 Received Heat Transfer 567 | . . 279 . . . 252 36 Siege Activations . | . . . . . . . . Robots Corrupted . | . . . . . . . . Combat Hostiles . | . . . . . . . . Parts Fried . | . . . . . . . . Impact Corruptions . | . . . . . . . . Robots Melted . | . . . . . . . . Combat Hostiles . | . . . . . . . . Parts Melted 1 | . . . 1 . . . . Heat Transferred 864 | . 50 . 814 . . . . Parts Sabotaged . | . . . . . . . . Parts Stolen . | . . . . . . . . Parts Stripped . | . . . . . . . . Power Chain Reactions . | . . . . . . . . Alert | -11 -10 -10 -7 -7 -5 -5 -5 ------- Run | Yrd Mat Sub Rec Scr Fac Gar Fac Peak Influence 589 | 5 131 . 152 . 313 589 333 Initial 308 | . 3 . 52 . . 239 308 Average 168 | 2 64 . 64 . 152 390 316 Maximum Alert Level 2 | . . . . . 1 2 1 Low Security (%) 68 | 100 100 . 100 . 77 . . Level 1 23 | . . . . . 22 67 100 Level 2 8 | . . . . . . 32 . Level 3 . | . . . . . . . . Level 4 . | . . . . . . . . Level 5 . | . . . . . . . . High Security . | . . . . . . . . Max Security . | . . . . . . . . Squads Dispatched 6 | . 1 . . . 4 . 1 Investigation 2 | . . . . . 1 . 1 Extermination . | . . . . . . . . Reinforcement 1 | . 1 . . . . . . Assault . | . . . . . . . . Garrison 3 | . . . . . 3 . . Intercept . | . . . . . . . . Searches Triggered . | . . . . . . . . Construction Impeded . | . . . . . . . . Haulers Reinforced . | . . . . . . . . Active Scanning Responses . | . . . . . . . . Cargo Convoy Interrupts . | . . . . . . . . Stealth | -11 -10 -10 -7 -7 -5 -5 -5 --------- Run | Yrd Mat Sub Rec Scr Fac Gar Fac Distress Signals 3 | . 1 . . . 2 . . Communications Jammed . | . . . . . . . . Distress Signals . | . . . . . . . . Times Spotted 58 | . 5 22 . . 5 24 2 Peak Tracking Total 11 | . 3 6 . . 8 11 2 Tactical Retreats 8 | . . 2 . . 2 4 . Traps | -11 -10 -10 -7 -7 -5 -5 -5 ------- Run | Yrd Mat Sub Rec Scr Fac Gar Fac Traps Triggered 7 | . . . . . 1 6 . Indirectly . | . . . . . . . . Trap Hack Attempts . | . . . . . . . . Triggered . | . . . . . . . . Disarmed . | . . . . . . . . Reprogrammed . | . . . . . . . . Reused . | . . . . . . . . Traps Extracted . | . . . . . . . . Installed . | . . . . . . . . Triggered . | . . . . . . . . Machines | -11 -10 -10 -7 -7 -5 -5 -5 ---------- Run | Yrd Mat Sub Rec Scr Fac Gar Fac Machines Disabled 8 | . 1 5 . . . 2 . Max in Single Turn 2 | . 1 2 . . . 1 . Garrison Relay 1 | . . . . . . 1 . Machines Repaired . | . . . . . . . . Machines Dismantled 1 | . . . . . . 1 . Machines Sabotaged . | . . . . . . . . Overloaded Fab Kills . | . . . . . . . . Hacking | -11 -10 -10 -7 -7 -5 -5 -5 --------- Run | Yrd Mat Sub Rec Scr Fac Gar Fac Machines Accessed 28 | . 3 4 6 4 7 2 2 Terminals 12 | . 3 . 3 . 3 2 1 Fabricators 2 | . . . . . 1 . 1 Repair Stations 1 | . . . . . 1 . . Recycling Units 3 | . . . 3 . . . . Scanalyzers . | . . . . . . . . Garrison Access 2 | . . . . . 2 . . Total Hacks 67 | . 6 8 11 19 12 6 5 Successful 41 | . 3 8 5 19 5 . 1 Failed 26 | . 3 . 6 . 7 6 4 Catastrophic 7 | . 1 . . . 2 2 2 Database Lockouts . | . . . . . . . . Manual 18 | . 1 . 7 . 6 . 4 Terminals 29 | . 6 . 8 . 5 6 4 Fabricators 4 | . . . . . 3 . 1 Repair Stations 2 | . . . . . 2 . . Recycling Units 3 | . . . 3 . . . . Scanalyzers . | . . . . . . . . Garrison Access 2 | . . . . . 2 . . Terminal Hacks 30 | . 2 8 . 19 1 . . Record 23 | . . 5 . 18 . . . Open Door 2 | . . 1 . 1 . . . Branch Access Points 1 | . . . . . 1 . . Locate Traps 1 | . 1 . . . . . . Hauler Manifests 1 | . 1 . . . . . . Derelict Proto ID Bank 1 | . . 1 . . . . . Release Object 1 | . . 1 . . . . . Fabricator Hacks 2 | . . . . . 2 . . Load Schematic 1 | . . . . . 1 . . Build 1 | . . . . . 1 . . Repair Station Hacks . | . . . . . . . . Recycling Unit Hacks . | . . . . . . . . Scanalyzer . | . . . . . . . . Garrison Access Hacks 1 | . . . . . 1 . . Unlock Access 1 | . . . . . 1 . . Unauthorized Hacks 8 | . 1 . 5 . 1 . 1 Terminals 4 | . 1 . 2 . . . 1 Assimilate 1 | . . . . . . . 1 Botnet 3 | . 1 . 2 . . . . Fabricators 1 | . . . . . 1 . . Haulers 1 | . . . . . 1 . . Repair Stations . | . . . . . . . . Recycling Units 3 | . . . 3 . . . . Tunnel 3 | . . . 3 . . . . Scanalyzers . | . . . . . . . . Garrison Access . | . . . . . . . . Data Cores Recovered . | . . . . . . . . Used . | . . . . . . . . Hacking Detections 16 | . 3 . 3 . 6 2 2 Full Trace Events 4 | . . . . . 1 2 1 Feedback Events . | . . . . . . . . Feedback Blocked . | . . . . . . . . Robot Schematics Acquired . | . . . . . . . . Robots Built . | . . . . . . . . Authchips . | . . . . . . . . Time . | . . . . . . . . Total Robot Build Rating . | . . . . . . . . Part Schematics Acquired 17 | . . . 1 10 4 2 . Parts Built 1 | . . . . . 1 . . Authchips . | . . . . . . . . Time 187 | . . . . . 187 . . Total Part Build Rating 7 | . . . . . 7 . . Parts Repaired . | . . . . . . . . Time . | . . . . . . . . Parts Recycled . | . . . . . . . . Recycled Matter . | . . . . . . . . Retrieved Matter . | . . . . . . . . Retrieved Components . | . . . . . . . . Parts Scanalyzed . | . . . . . . . . Part Schematics Acquired . | . . . . . . . . Parts Damaged . | . . . . . . . . Bothacking | -11 -10 -10 -7 -7 -5 -5 -5 ------------ Run | Yrd Mat Sub Rec Scr Fac Gar Fac Used RIF Installer . | . . . . . . . . Robots Hacked 1 | . . . . . . 1 . Non-combat . | . . . . . . . . Combat . | . . . . . . . . Robot Hacks Applied . | . . . . . . . . Manual 1 | . . . . . . 1 . Relay Couplers Released 4 | . . . . . . 4 . Machine Destruction 4 | . . . . . . 4 . Fabnet Peak Effective % . | . . . . . . . . Robots Rewired 3 | . . . . . . 3 . Allies Hacked . | . . . . . . . . Hacks Repelled . | . . . . . . . . Allies | -11 -10 -10 -7 -7 -5 -5 -5 -------- Run | Yrd Mat Sub Rec Scr Fac Gar Fac Total Allies 4 | . . . . 1 . 3 . Largest Group 2 | . . . . 1 1 2 . Highest-Rated Group 85 | . . . . 65 65 85 . Highest-Rated Ally 85 | . . . . 65 65 85 . Total Orders . | . . . . . . . . Ally Attacks 42 | . . . . . 28 14 . Total Damage 1530 | . . . . . 1038 492 . Kills 11 | . . . . . 8 3 . Allies Corrupted 1 | . . . . . 1 . . Allies Melted . | . . . . . . . . Intel | -11 -10 -10 -7 -7 -5 -5 -5 ------- Run | Yrd Mat Sub Rec Scr Fac Gar Fac Robot Analysis Total . | . . . . . . . . Derelict Logs Recovered 6 | . . 1 . 5 . . . Drone Launches . | . . . . . . . . Drone Recoveries . | . . . . . . . . Exploration | -11 -10 -10 -7 -7 -5 -5 -5 ------------- Run | Yrd Mat Sub Rec Scr Fac Gar Fac Turns Passed 9261 | 34 490 4162 661 2929 384 565 36 Spaces Moved 6665 | 18 234 2333 420 2100 883 596 81 Core 7 | . . . . . . 7 . Treads 2199 | . 187 1959 . . . 53 . Legs 65 | 18 47 . . . . . . Wheels 2894 | . . 374 420 2100 . . . Hover . | . . . . . . . . Flight 1500 | . . . . . 883 536 81 Fastest Speed 25 | 120 120 129 135 135 25 25 30 Average Speed 121 | 120 151 160 139 135 27 50 30 Slowest Speed 360 | 120 160 360 175 135 31 240 30 Overloaded Moves . | . . . . . . . . Propulsion Burnouts . | . . . . . . . . Robots Hopped 15 | . . . . . 3 12 . Cave-ins Triggered . | . . . . . . . . Exploration Rate (%) 49 | 2 53 94 66 94 25 57 3 Regions Visited 7 Branch Regions 3 Pre-discovered Areas 6 | . . 1 3 2 . . . Known Exits Taken 1 | . . . . . 1 . . Unknown Exits Taken 5 | 1 1 1 1 1 . . . Scrap Searched 13 | . . 9 . 4 . . . Spaces Dug 11 | . . . . . 7 4 . Terrain Destroyed 84 | . . 73 . . 7 4 . Melee 11 | . . . . . 7 4 . Projectile 1 | . . 1 . . . . . AOE 72 | . . 72 . . . . . Terrain Rammed . | . . . . . . . . Walls Destroyed . | . . . . . . . . Machines Disabled . | . . . . . . . . Actions | -11 -10 -10 -7 -7 -5 -5 -5 --------- Run | Yrd Mat Sub Rec Scr Fac Gar Fac Total 7460 | 24 292 2603 468 2220 996 767 90 Wait 192 | 1 13 86 15 32 34 9 2 Move 6631 | 17 233 2332 419 2099 878 572 81 Hop 11 | . . . . . 2 9 . Pick Up 101 | 1 7 23 14 38 14 4 . Fast Attach 43 | 1 . 9 1 1 10 21 . Attach 26 | . 2 4 . 1 11 8 . Detach 18 | . . 1 1 1 7 8 . Swap 28 | 1 2 18 2 . 5 . . Drop 121 | . 6 33 3 48 17 14 . Fire 142 | 3 29 92 13 . . 5 . Melee 65 | . . . . . 18 45 2 Ram 5 | . . . . . . . 5 Kick . | . . . . . . . . Crush . | . . . . . . . . Escape Stasis 64 | . . . . . . 64 . Rewire . | . . . . . . . . Trap . | . . . . . . . . Miscellaneous 13 | . . 5 . . . 8 . Route ------- -11/Scrapyard -10/Materials (discovered 2 exits: [*Mat] / *Sub) -10/Subcaves (discovered 3 exits: [*Mat x2] / *Rec) -7/Recycling -7/Scraptown (discovered 2 exits: *Fac x2) -5/Factory (discovered 3 exits: Upp x2 / Gar) -5/Garrison (discovered 3 exits: *Fac x3) -5/Factory History --------- Turn | Location | Event 3 | -11/Scrapyard | Discovered new exit (range 3) 35 | -11/Scrapyard | Entered Materials 301 | -10/Materials | Discovered new exit (range 13) 304 | -10/Materials | Build established: Mutant 446 | -10/Materials | Discovered new exit (range 3) 525 | -10/Materials | Entered Subcaves 695 | -10/Subcaves | Learned location of Mines (-10) 737 | -10/Subcaves | Visited 4L-MR0's lab 973 | -10/Subcaves | A swath of the cavern ceiling suddenly collapsed 1182 | -10/Subcaves | A swath of the cavern ceiling suddenly collapsed 1190 | -10/Subcaves | Shifting Twisted Machinery released Sub. Optics 1253 | -10/Subcaves | Shifting Twisted Machinery released Mak. Light Armor Plating 1757 | -10/Subcaves | Core integrity fell below 50% 1804 | -10/Subcaves | Discovered new exit (range 13) 1883 | -10/Subcaves | Shifting Twisted Machinery released Sub. Power Source 1885 | -10/Subcaves | Shifting Twisted Machinery released Mak. Laser 1956 | -10/Subcaves | Visited Clippyterm 1960 | -10/Subcaves | Learned Factory stockpile data 2333 | -10/Subcaves | Discovered new exit (range 5) 2336 | -10/Subcaves | Disturbed a concealed Subdweller 2360 | -10/Subcaves | Core integrity fell below 20% 2843 | -10/Subcaves | Build established: Subdweller-Mutant 3561 | -10/Subcaves | Shifting Twisted Machinery released Sub. Shrapnel Launcher 3566 | -10/Subcaves | Shifting Twisted Machinery released Sub. Power Source 3598 | -10/Subcaves | Discovered new exit (range 14) 4001 | -10/Subcaves | Found Meta Core 4303 | -10/Subcaves | Build established: Mutant 4409 | -10/Subcaves | Found SUBCON Basin 4687 | -10/Subcaves | Entered Recycling 5044 | -7/Recycling | Scanned before Scraplab entrance 5063 | -7/Recycling | Entered Scraplab 5345 | -7/Recycling | Discovered new exit (range 2) 5348 | -7/Recycling | Entered Scraptown 5694 | -7/Scraptown | Discovered new exit (range 5) 5726 | -7/Scraptown | Scanned Subdweller tech in exchange for log data 5729 | -7/Scraptown | Learned Research garrison access intel 5731 | -7/Scraptown | Learned location of Warlord (-4) 5732 | -7/Scraptown | Learned 8 Research zone layouts 5733 | -7/Scraptown | Learned Factory stockpile data 5735 | -7/Scraptown | Learned location of Extension (-6) 5739 | -7/Scraptown | Attached Meta Core, gained temporary slots: Propulsion, Utility, Weapon 5891 | -7/Scraptown | Visited UFD Registry 5891 | -7/Scraptown | Registered with UFD as "Cryocoil" 5907 | -7/Scraptown | Visited Supply Room 5936 | -7/Scraptown | Visited TADAMA 6014 | -7/Scraptown | Visited Cyclists 6034 | -7/Scraptown | Entered Cyclist Reading Room 6065 | -7/Scraptown | Visited CR-KLE's Repair Center 6083 | -7/Scraptown | Tech Extrapolator generated special schematic: Machine Rigger 6113 | -7/Scraptown | Visited Cave Peace 6160 | -7/Scraptown | Visited Symbiants 6179 | -7/Scraptown | Visited Awakened 6570 | -7/Scraptown | Delivered Scrap Shield to a Scientist 6718 | -7/Scraptown | Visited Scrapoid Research Area 6753 | -7/Scraptown | Visited Chapter 10 6798 | -7/Scraptown | Visited Botcube Research 6803 | -7/Scraptown | Found Lrg. Botcube 6855 | -7/Scraptown | Visited Scrapoid Pod Storage 6862 | -7/Scraptown | Found Scrapoid Pod 6885 | -7/Scraptown | Visited Infowarlord's Domain 6976 | -7/Scraptown | Visited Abandonware Association 6990 | -7/Scraptown | Learned abandonware demo "HACKBUD.EXE" 6990 | -7/Scraptown | Learned abandonware demo "ERRANTS.EXE" 6993 | -7/Scraptown | Learned abandonware demo "OVRCLOCK.EXE" 7014 | -7/Scraptown | Visited Sword Containment 7066 | -7/Scraptown | Visited A0-MCA Data Center 7120 | -7/Scraptown | Visited Curators Association 7885 | -7/Scraptown | Lrg. Botcube activated 7911 | -7/Scraptown | Lrg. Botcube completed mutation into treaded form, armed with 4 guns. 8052 | -7/Scraptown | CR-KLE repaired 1 part 8241 | -7/Scraptown | Found Scrap Suit 8244 | -7/Scraptown | Found Scrap Suit 8261 | -7/Scraptown | Discovered new exit (range 5) 8277 | -7/Scraptown | Entered Factory 8277 | -5/Factory | Accompanied by 1 ally 8277 | -5/Factory | Evolved 10 slots: Propulsion x2, Utility x8 8352 | -5/Factory | Garrison activated, responded to threat 8471 | -5/Factory | Identified exit to Upper Caves 8526 | -5/Factory | Fabricated Machine Rigger (x1) 8659 | -5/Factory | Spotted B-75 Beast 8661 | -5/Factory | Identified exit to Garrison 8661 | -5/Factory | Entered Garrison 8693 | -5/Garrison | Triggered checkpoint 8721 | -5/Garrison | Spotted B-75 Beast 8725 | -5/Garrison | Build established: Scavenger-Ninja 8745 | -5/Garrison | Triggered checkpoint 8817 | -5/Garrison | System corruption reached 10% 8842 | -5/Garrison | Discovered new exit (range 10) 8846 | -5/Garrison | Attempted to access garrison exit controls, blocked by remote lockdown 8863 | -5/Garrison | Lost 14 parts (6n8u) 8874 | -5/Garrison | Core integrity fell below 50% 8884 | -5/Garrison | Rewired B-75 Beast 9098 | -5/Garrison | Garrison Relay disabled 9113 | -5/Garrison | Triggered checkpoint 9133 | -5/Garrison | Discovered new exit (range 8) 9136 | -5/Garrison | Attempted to access garrison exit controls, blocked by remote lockdown 9150 | -5/Garrison | Core integrity fell below 20% 9160 | -5/Garrison | Lost 5 parts (3n1u1w) 9205 | -5/Garrison | Discovered new exit (range 12) 9226 | -5/Garrison | Entered Factory 9262 | -5/Factory | Destroyed by Y-64 Sentinel with Wave Gun Last Messages --------------- 09249_ System corrupted: Slammed into ceiling. 09249_ Targeting Computer destroyed. 09249_ System corrupted by crushing effect (+5). 09251_ Connecting with Terminal... >>Trojan(Assimilate) Trojan loaded successfully. Testing... System interface override in place. 09251_ ALERT: Suspicious activity at Terminal F007. Dispatching Investigation squad. 09254_ Penetrated by Slug. 09254_ Subcomponent Replicator disabled. 09257_ Companion Sword destroyed. Companion Sword: "Will you miss me?" 09257_ Penetrated by Slug. 09257_ Imp. Surge Thruster destroyed. 09258_ System corrupted: Energy discharge (-37). 09258_ Slammed into Y-64 Sentinel. 09260_ Penetrated by Slug. 09260_ Slammed into Y-64 Sentinel. Map ----- +----------------------------------------------------+ | ??????????????????????????????? | | ??????????????????????????????? | | ??????????????????????????????? | | ??????????????????????????????? | | ??????????????????????????????? | | ??????????????????????????????? | | ??????????????????????????????? | | ??????????????????????????????? | | ??????????????????????????????? | | ?????????????? ?????????????? | | ?????????? ? ?????????????? | | ?????????# ?????????????? | | ?????????# ?????????????? | | ?????????# #????????????? | | ?????????# #????????????? | | ?????????# #????????????? | | ?????????# ############## | | ?????????# # ] # | | ?????????# # ! # | | ?????????# # # | | ?????????# # # | | ?????????# # ![[ # | | ?????????# # ![ # | | ?????????# + ![ # | | ?????????# # # | | ?????????# # """" @ # | | ?????????# # """""Y # | | ?????????# # """ "T" # | | ?????????###### ## # | | ??????????????# ############# # | | ??????????????# #?????????????# | | ??????????????# #?????????????? | | ??????????????# #?????????????? | | ??????????????# #?????????????? | | ??????????????# #?????????????? | | ??????????????# #?????????????? | | ??????????????# #?????????????? | | ??????????????# #?????????????? | | ??????????????# #?????????????? | | ??????????????# #?????????????? | | ????????####### #??######?##??? | | ????????# #??# ??? | | ????????# #??# """ ""??? | | ????????# #??# """ """?? | | ????????# " " #??# """ """?? | | ????????# " " #### ?? | | ????????# " " # """ ""??? | | ????????# " " # """ ""??? | | ??? ????# " " + """ ""??? | | ???# " " # ? | +----------------------------------------------------+ Best States ------------- Heat Dissipation 40 Energy Generation 19 Energy Capacity 310 Matter Stores 300 Matter Capacity 300 Sight Range 18 Robot Scan Range 15 Terrain Scan Range 14 Terrain Scan Density 210 Armor Coverage 800 Evasion (%) 71 Targeting Accuracy 20 Melee Accuracy 5 Target Analysis 6 Recoil Reduction 2 Defensive Hacking 10 Item Schematics ----------------- Humpback | -7/Recycling | Extrapolated Spk. Treads | -7/Scraptown | Extrapolated Mak. Leg | -7/Scraptown | Extrapolated Machine Rigger | -7/Scraptown | Extrapolated Mak. Coolant Network | -7/Scraptown | Extrapolated Mak. Trap Scanner | -7/Scraptown | Extrapolated Mak. Terrain Scanner | -7/Scraptown | Extrapolated Mak. Terrain Scan Processor | -7/Scraptown | Extrapolated 0b10 Decoder Chip [Generic] | -7/Scraptown | Extrapolated 0b10 Decoder Chip [Scout] | -7/Scraptown | Extrapolated 0b10 Decoder Chip [Skirmisher] | -7/Scraptown | Extrapolated 0b10 Decoder Chip [Looter] | -5/Factory | Extrapolated Tactical Coordination Suite | -5/Factory | Extrapolated Mak. Kinetic Plating | -5/Factory | Extrapolated Spk. Medium Treads | -5/Factory | Extrapolated Mak. Power Source | -5/Garrison | Extrapolated Mak. Medium Armor Plating | -5/Garrison | Extrapolated Robot Schematics ------------------ None Fabricated ------------ Machine Rigger | x1 | -5/Factory Alien Tech Used ----------------- None Achievements -------------- None Challenges ------------ None Game ------ Seed AngularMicroProtection Manual? 0 Play Time 01:13:01 Cumulative 156.2 hours Start 2024.08.14 @ 23:08:21 End 2024.08.15 @ 00:22:22 Sessions 1 Manual Loads 0 Difficulty Rogue Special Mode None Game No. 124 Rogue 124 Adventurer 0 Explorer 0 Win Type - Total 11 Types 7/0/3/1/0/0/0/0/0 Lore% 69 Gallery% 66 Achievement% 62 Wizard Run 0 Options --------- Layout 0 ASCII 0 Keyboard 1 Movement Vi Keybinds 0 Fullscreen 2 Font 24/Smallcaps Map View 76x50 Zoom Use 0% Tactical HUD 1 Map Filters NONE Filters NONE Steam 1 RUN: 765c88a6-b892-41c8-96a2-6762b06040e7